fUSD/lending_fUSD_20240823
["ID","MTS","AMOUNT","RATE_DAILY","PERIOD"]
[335638326,1724397046494,-181.06689362,0.00010989,2]
[335638328,1724397046503,-1987.2,0.00010989,2]
[335638330,1724397046513,-500.0,0.00010989,2]
[335638332,1724397046522,-1987.2,0.00010989,2]
[335638334,1724397046531,-500.0,0.00010989,2]
[335638336,1724397046540,-503.75660805,0.00010989,2]
[335638338,1724397046549,-1987.2,0.00010989,2]
[335638340,1724397046558,-500.0,0.00010989,2]
[335638341,1724397046567,-500.0,0.00010989,2]
[335638343,1724397046578,-500.0,0.00010989,2]
[335638345,1724397046587,-500.0,0.00010989,2]
[335638347,1724397046596,-500.0,0.00010989,2]
[335638349,1724397046606,-500.0,0.00010989,2]
[335638351,1724397046614,-500.0,0.00010989,2]
[335638353,1724397046624,-932.84,0.00010989,2]
[335638355,1724397046633,-500.0,0.00010989,2]
[335638357,1724397046644,-932.84,0.00010989,2]
[335638359,1724397046652,-500.0,0.00010989,2]
[335638361,1724397046662,-932.84,0.00010989,2]
[335638363,1724397046671,-500.0,0.00010989,2]
[335638365,1724397046680,-500.0,0.00010989,2]
[335638367,1724397046689,-500.0,0.00010989,2]
[335638369,1724397046698,-865.34,0.00010989,2]
[335638371,1724397046707,-865.34,0.00010989,2]
[335638373,1724397046716,-865.34,0.00010989,2]
[335638375,1724397046725,-1105.07,0.00010989,2]
[335638377,1724397046734,-1105.07,0.00010989,2]
[335638379,1724397046743,-1105.07,0.00010989,2]
[335638381,1724397046752,-1537.04,0.00010989,2]
[335638383,1724397046763,-1537.04,0.00010989,2]
[335638385,1724397046774,-1537.04,0.00010989,2]
[335638387,1724397046784,-616.29,0.00010989,2]
[335638389,1724397046793,-616.29,0.00010989,2]
[335638391,1724397046803,-616.29,0.00010989,2]
[335638393,1724397046813,-770.38,0.00010989,2]
[335638394,1724397046823,-770.38,0.00010989,2]
[335638396,1724397046831,-770.38,0.00010989,2]
[335638398,1724397046842,-363.95,0.00010989,2]
[335638400,1724397046851,-500.0,0.00010989,2]
[335638402,1724397046860,-500.0,0.00010989,2]
[335638404,1724397046869,-500.0,0.00010989,2]
[335638406,1724397046878,-500.0,0.00010989,2]
[335638408,1724397046888,-288.16,0.00010989,2]
[335638410,1724397046897,-312.32,0.00010989,2]
[335638412,1724397046906,-500.0,0.00010989,2]
[335638414,1724397046915,-589.26,0.00010989,2]
[335638416,1724397046924,-252.43,0.00010989,2]
[335638418,1724397046934,-551.07,0.00010989,2]
[335638420,1724397046943,-500.0,0.00010989,2]
[335638422,1724397046952,-179.8,0.00010989,2]
[335638424,1724397046962,-500.0,0.00010989,2]
[335638426,1724397046971,-500.0,0.00010989,2]
[335638428,1724397046980,-500.0,0.00010989,2]
[335638430,1724397046990,-484.24,0.00010989,2]
[335638432,1724397046999,-500.0,0.00010989,2]
[335638434,1724397047009,-500.0,0.00010989,2]
[335638436,1724397047018,-216.22,0.00010989,2]
[335638438,1724397047027,-206.3,0.00010989,2]
[335638440,1724397047038,-283.81,0.00010989,2]
[335638442,1724397047048,-1158.12,0.00010989,2]
[335638444,1724397047056,-1158.12,0.00010989,2]
[335638446,1724397047066,-1158.12,0.00010989,2]
[335638448,1724397047076,-488.78,0.00010989,2]
[335638449,1724397047085,-521.21,0.00010989,2]
[335638451,1724397047094,-500.0,0.00010989,2]
[335638453,1724397047103,-500.0,0.00010989,2]
[335638455,1724397047113,-500.0,0.00010989,2]
[335638457,1724397047123,-500.0,0.00010989,2]
[335638459,1724397047132,-384.77,0.00010989,2]
[335638461,1724397047142,-500.0,0.00010989,2]
[335638463,1724397047151,-500.0,0.00010989,2]
[335638465,1724397047160,-500.0,0.00010989,2]
[335638467,1724397047170,-500.0,0.00010989,2]
[335638469,1724397047179,-242.83,0.00010989,2]
[335638471,1724397047188,-500.0,0.00010989,2]
[335638473,1724397047197,-223.87228232,0.00010989,2]
[335638474,1724397047206,-500.0,0.00010989,2]
[335638476,1724397047216,-236.83,0.00010989,2]
[335638478,1724397047224,-285.83,0.00010989,2]
[335638480,1724397047234,-306.14757418,0.00010989,2]
[335638482,1724397047243,-401.27916228,0.00010989,2]
[335638484,1724397047253,-1081.08,0.00010989,2]
[335638486,1724397047262,-1081.08,0.00010989,2]
[335638488,1724397047271,-240.1,0.00010989,2]
[335638490,1724397047281,-1081.08,0.00010989,2]
[335638492,1724397047290,-641.14833238,0.00010989,2]
[335638493,1724397047300,-547.33,0.00010989,2]
[335638495,1724397047309,-557.24,0.00010989,2]
[335638497,1724397047318,-221.84,0.00010989,2]
[335638499,1724397047328,-215.90861388,0.00010989,2]
[335638501,1724397047337,-500.0,0.00010989,2]
[335638503,1724397047346,-500.0,0.00010989,2]
[335638505,1724397047355,-500.0,0.00010989,2]
[335638507,1724397047364,-500.0,0.00010989,2]
[335638509,1724397047373,-500.0,0.00010989,2]
[335638511,1724397047383,-514.31871436,0.00010989,2]
[335638513,1724397047392,-456.13637782,0.00010989,2]
[335638515,1724397047401,-500.0,0.00010989,2]
[335638517,1724397047411,-500.0,0.00010989,2]
[335638519,1724397047420,-500.0,0.00010989,2]
[335638521,1724397047430,-500.0,0.00010989,2]
[335638523,1724397047439,-500.0,0.00010989,2]
[335638524,1724397047448,-500.0,0.00010989,2]
[335638526,1724397047459,-500.0,0.00010989,2]
[335638528,1724397047468,-500.0,0.00010989,2]
[335638530,1724397047477,-357.03456723,0.00010989,2]
[335638532,1724397047487,-500.0,0.00010989,2]
[335638534,1724397047496,-500.0,0.00010989,2]
[335638536,1724397047506,-500.0,0.00010989,2]
[335638538,1724397047515,-500.0,0.00010989,2]
[335638540,1724397047524,-500.0,0.00010989,2]
[335638541,1724397047533,-500.0,0.00010989,2]
[335638543,1724397047542,-500.0,0.00010989,2]
[335638545,1724397047551,-500.0,0.00010989,2]
[335638547,1724397047561,-500.0,0.00010989,2]
[335638549,1724397047570,-500.0,0.00010989,2]
[335638551,1724397047580,-500.0,0.00010989,2]
[335638553,1724397047590,-500.0,0.00010989,2]
[335638555,1724397047600,-229.96458279,0.00010989,2]
[335638557,1724397047609,-372.87573825,0.00010989,2]
[335638559,1724397047618,-373.33286707,0.00010989,2]
[335638561,1724397047627,-160.74959165,0.00010989,2]
[335638562,1724397047636,-5284.18,0.0001099,2]
[335638564,1724397047646,-3320.0,0.00010991,2]
[335638566,1724397047655,-1081.08,0.00010995,2]
[335638568,1724397047665,-152.86473438,0.00010995,2]
[335638570,1724397047674,-500.0,0.00010996,2]
[335638572,1724397047683,-353.24451369,0.00010996,2]
[335638574,1724397047692,-500.0,0.00010996,2]
[335638576,1724397047702,-373.91363816,0.00010996,2]
[335638578,1724397047711,-272.64492855,0.00010996,2]
[335638580,1724397047721,-500.0,0.00010996,2]
[335638582,1724397047731,-500.0,0.00010996,2]
[335638584,1724397047742,-500.0,0.00010996,2]
[335638586,1724397047752,-500.0,0.00010996,2]
[335638588,1724397047765,-500.0,0.00010996,2]
[335638590,1724397047774,-152.86473438,0.00010996,2]
[335638592,1724397047782,-500.0,0.00010997,2]
[335638594,1724397047792,-500.0,0.00010997,2]
[335638596,1724397047801,-702.24,0.00010997,2]
[335638598,1724397047811,-500.0,0.00010997,2]
[335638600,1724397047819,-500.0,0.00010997,2]
[335638602,1724397047830,-687.83,0.00010997,2]
[335638604,1724397047839,-805.48,0.00010997,2]
[335638606,1724397047850,-500.0,0.00010997,2]
[335638608,1724397047860,-500.0,0.00010997,2]
[335638610,1724397047869,-1987.2,0.00010997,2]
[335638612,1724397047878,-500.0,0.00010997,2]
[335638613,1724397047888,-500.0,0.00010997,2]
[335638614,1724397047897,-500.0,0.00010997,2]
[335638615,1724397047906,-932.84,0.00010997,2]
[335638616,1724397047916,-500.0,0.00010997,2]
[335638617,1724397047924,-865.34,0.00010997,2]
[335638618,1724397047934,-1105.07,0.00010997,2]
[335638619,1724397047943,-1537.04,0.00010997,2]
[335638620,1724397047951,-616.29,0.00010997,2]
[335638621,1724397047960,-770.38,0.00010997,2]
[335638622,1724397047970,-500.0,0.00010997,2]
[335638623,1724397047979,-653.17,0.00010997,2]
[335638624,1724397047988,-1175.28,0.00010997,2]
[335638625,1724397047997,-500.0,0.00010997,2]
[335638626,1724397048006,-500.0,0.00010997,2]
[335638627,1724397048015,-500.0,0.00010997,2]
[335638628,1724397048025,-500.0,0.00010997,2]
[335638629,1724397048034,-500.0,0.00010997,2]
[335638631,1724397048043,-1585.13,0.00010997,2]
[335638633,1724397048053,-674.98,0.00010997,2]
[335638634,1724397048062,-1158.12,0.00010997,2]
[335638636,1724397048073,-500.0,0.00010997,2]
[335638638,1724397048082,-500.0,0.00010997,2]
[335638640,1724397048091,-500.0,0.00010997,2]
[335638642,1724397048100,-2367.23,0.00010997,2]
[335638644,1724397048109,-163.03132972,0.00010997,2]
[335638646,1724397048118,-791.78,0.00010997,2]
[335638648,1724397048127,-500.0,0.00010997,2]
[335638650,1724397048136,-500.0,0.00010997,2]
[335638652,1724397048146,-447.10381461,0.00010997,2]
[335638654,1724397048155,-500.0,0.00010997,2]
[335638656,1724397048164,-500.0,0.00010997,2]
[335638658,1724397048173,-514.46533971,0.00010997,2]
[335638660,1724397048182,-500.0,0.00010997,2]
[335638662,1724397048192,-500.0,0.00010997,2]
[335638664,1724397048201,-500.0,0.00010997,2]
[335638666,1724397048210,-499.81026194,0.00010997,2]
[335638668,1724397048219,-500.0,0.00010997,2]
[335638669,1724397048228,-500.0,0.00010997,2]
[335638671,1724397048237,-500.0,0.00010997,2]
[335638673,1724397048247,-4975.15,0.00010997,2]
[335638675,1724397048256,-500.0,0.00010997,2]
[335638677,1724397048265,-500.0,0.00010997,2]
[335638679,1724397048275,-2754.54,0.00010997,2]
[335638681,1724397048284,-3907.53,0.00010997,2]
[335638683,1724397048294,-477.18692472,0.00010997,2]
[335638685,1724397048303,-500.0,0.00010997,2]
[335638687,1724397048313,-8204.23,0.00010997,2]
[335638689,1724397048324,-3858.33,0.00010997,2]
[335638691,1724397048333,-5651.96,0.00010997,2]
[335638693,1724397048343,-4040.23,0.00010997,2]
[335638695,1724397048352,-500.0,0.00010997,2]
[335638697,1724397048361,-6002.82,0.00010997,2]
[335638699,1724397048371,-500.0,0.00010997,2]
[335638701,1724397048380,-5329.2,0.00010997,2]
[335638703,1724397048389,-8908.85,0.00010997,2]
[335638705,1724397048399,-685.27,0.00010997,2]
[335638706,1724397048408,-1116.3,0.00010997,2]
[335638708,1724397048417,-500.0,0.00010997,2]
[335638710,1724397048426,-5284.18,0.00010997,2]
[335638712,1724397048436,-5284.18,0.00010997,2]
[335638714,1724397048445,-5284.18,0.00010997,2]
[335638716,1724397048454,-1815.8,0.00010997,2]
[335638718,1724397048463,-500.0,0.00010997,2]
[335638720,1724397048473,-500.0,0.00010997,2]
[335638722,1724397048483,-4271.33,0.00010997,2]
[335638724,1724397048493,-500.0,0.00010997,2]
[335638726,1724397048502,-500.0,0.00010997,2]
[335638728,1724397048511,-500.0,0.00010997,2]
[335638730,1724397048520,-816.72,0.00010997,2]
[335638732,1724397048529,-500.0,0.00010997,2]
[335638734,1724397048539,-8174.27,0.00010997,2]
[335638736,1724397048548,-500.0,0.00010997,2]
[335638738,1724397048557,-500.0,0.00010997,2]
[335638740,1724397048566,-500.0,0.00010997,2]
[335638742,1724397048576,-500.0,0.00010997,2]
[335638744,1724397048586,-1056.95,0.00010997,2]
[335638746,1724397048595,-10802.65,0.00010997,2]
[335638748,1724397048604,-305.72946876,0.00010997,2]
[335638749,1724397048613,-500.0,0.00010998,2]
[335638751,1724397048623,-500.0,0.00010998,2]
[335638753,1724397048632,-500.0,0.00010998,2]
[335638755,1724397048641,-500.0,0.00010998,2]
[335638757,1724397048650,-702.24,0.00010998,2]
[335638759,1724397048659,-702.24,0.00010998,2]
[335638761,1724397048669,-574.26094745,0.00010998,2]
[335638763,1724397048678,-500.0,0.00010998,2]
[335638765,1724397048687,-500.0,0.00010998,2]
[335638767,1724397048696,-687.83,0.00010998,2]
[335638768,1724397048706,-687.83,0.00010998,2]
[335638770,1724397048714,-805.48,0.00010998,2]
[335638772,1724397048723,-805.48,0.00010998,2]
[335638774,1724397048733,-500.0,0.00010998,2]
[335638776,1724397048742,-500.0,0.00010998,2]
[335638778,1724397048751,-500.0,0.00010998,2]
[335638780,1724397048760,-500.0,0.00010998,2]
[335638782,1724397048774,-1987.2,0.00010998,2]
[335638784,1724397048783,-1987.2,0.00010998,2]
[335638786,1724397048792,-500.0,0.00010998,2]
[335638788,1724397048801,-500.0,0.00010998,2]
[335638790,1724397048811,-500.0,0.00010998,2]
[335638792,1724397048820,-500.0,0.00010998,2]
[335638794,1724397048830,-932.84,0.00010998,2]
[335638796,1724397048841,-500.0,0.00010998,2]
[335638798,1724397048850,-500.0,0.00010998,2]
[335638800,1724397048859,-932.84,0.00010998,2]
[335638801,1724397048869,-483.69,0.00010998,2]
[335638803,1724397048878,-865.34,0.00010998,2]
[335638805,1724397048887,-865.34,0.00010998,2]
[335638807,1724397048896,-1105.07,0.00010998,2]
[335638809,1724397048906,-1105.07,0.00010998,2]
[335638811,1724397048915,-1537.04,0.00010998,2]
[335638813,1724397048924,-1537.04,0.00010998,2]
[335638815,1724397048933,-616.29,0.00010998,2]
[335638817,1724397048942,-616.29,0.00010998,2]
[335638818,1724397048951,-770.38,0.00010998,2]
[335638820,1724397048960,-770.38,0.00010998,2]
[335638822,1724397048969,-278.82915092,0.00010998,2]
[335638824,1724397048978,-500.0,0.00010998,2]
[335638826,1724397048988,-500.0,0.00010998,2]
[335638828,1724397048997,-500.0,0.00010998,2]
[335638830,1724397049006,-359.13556744,0.00010998,2]
[335638976,1724397050529,-1798.51939084,0.00010899,2]
[335638978,1724397050539,-1592.89331278,0.00010987,2]
[335638981,1724397050554,-5013.92964286,0.00010987,2]
[335638983,1724397050565,-589.44132811,0.00010987,2]
[335638985,1724397050576,-500.0,0.00010988,2]
[335638986,1724397050585,-182.18122993,0.00010998,2]
[335638987,1724397050596,-653.17,0.00010998,2]
[335638988,1724397050605,-653.17,0.00010998,2]
[335638989,1724397050615,-653.17,0.00010998,2]
[335638990,1724397050624,-653.17,0.00010998,2]
[335638992,1724397050634,-653.17,0.00010998,2]
[335638994,1724397050643,-1175.28,0.00010998,2]
[335638996,1724397050652,-1175.28,0.00010998,2]
[335638997,1724397050661,-1175.28,0.00010998,2]
[335638999,1724397050671,-1175.28,0.00010998,2]
[335639001,1724397050681,-1175.28,0.00010998,2]
[335639003,1724397050690,-500.0,0.00010998,2]
[335639005,1724397050700,-512.10845942,0.00010998,2]
[335639007,1724397050709,-500.0,0.00010998,2]
[335639009,1724397050719,-307.86698254,0.00010998,2]
[335639011,1724397050730,-192.13301746,0.00010998,2]
[335639013,1724397050740,-500.0,0.00010998,2]
[335639015,1724397050749,-55.41185708,0.00010998,2]
[335640130,1724397164698,328.95,8.464e-05,2]
[335640133,1724397383571,300.0,0.00027,120]
[335640134,1724397429016,232.09,9.982e-05,2]
[335640135,1724397435030,294.51250289,0.00010009,2]
[335640137,1724397525889,2292.58671897,0.00010009,2]
[335640138,1724397531992,271.2836889,0.00010009,2]
[335640139,1724397541060,208.20992255,0.00010009,2]
[335640140,1724397545517,357.74940778,0.00010009,2]
[335640141,1724397551512,200.4454582,0.00010009,2]
[335640142,1724397552930,305.05224028,0.00010009,2]
[335640144,1724397558631,380.35876131,0.00010009,2]
[335640145,1724397569179,300.23953365,0.00010009,2]
[335640146,1724397569248,993.14078294,0.00010009,2]
[335640147,1724397580906,293.58046742,0.00010009,2]
[335640148,1724397587748,341.14193703,0.00010009,4]
[335640149,1724397635103,250.0,9.934e-05,2]
[335640151,1724397650875,241.68,9.947e-05,2]
[335640152,1724397656498,394.46,8.219e-05,2]
[335640153,1724397768036,7474.67,9.94e-05,2]
[335640155,1724397864402,455.86,9.913e-05,2]
[335640157,1724397925115,500.0,9.896e-05,3]
[335640172,1724398040234,155.16328719,0.00010009,2]
[335640175,1724398062445,155.25544051,0.00010009,2]
[335640237,1724398159551,374.73,8.219e-05,2]
[335640342,1724398189821,155.0,0.00010009,2]
[335640343,1724398198562,214.32,9.89e-05,2]
[335640383,1724398232045,-316.83560636,0.00010026,2]
[335640384,1724398232055,-602.0367051,0.00010026,2]
[335640385,1724398232066,-419.17924755,0.00010026,2]
[335640386,1724398232102,-253.64998251,0.00010026,2]
[335640387,1724398232111,-544.14,0.00010322,2]
[335640388,1724398232120,-168.30236538,0.00010469,2]
[335640389,1724398232137,-206.42763462,0.00010469,2]
[335640390,1724398232147,-155.0,0.00010471,2]
[335640391,1724398232162,-155.0,0.00010471,2]
[335640392,1724398232171,-522.80021426,0.00010566,2]
[335640393,1724398232181,-300.0,0.00010632,2]
[335640394,1724398232190,-42668.0,0.00010633,2]
[335640395,1724398232201,-2643.411,0.00010698,2]
[335640396,1724398232211,-155.0,0.00010713,2]
[335640397,1724398232220,-150.0,0.00010772,2]
[335640398,1724398232230,-4847.37,0.00010773,2]
[335640399,1724398232239,-415.3,0.00010773,2]
[335640400,1724398232249,-11758.95560395,0.00010788,2]
[335640401,1724398232258,-1195.42,0.00010788,2]
[335640402,1724398232281,-328026.60936649,0.00010797,2]
[335640403,1724398232291,-155.96653042,0.000108,2]
[335640404,1724398232300,-171.86552435,0.00010858,2]
[335640405,1724398232310,-757.28932428,0.00010862,2]
[335640406,1724398232322,-171.86552433,0.00010877,2]
[335640407,1724398232332,-6855.34579805,0.0001088,2]
[335640408,1724398232341,-151.35904873,0.00010887,2]
[335640409,1724398232351,-383.79,0.00010887,2]
[335640410,1724398232360,-978.2492,0.00010888,2]
[335640411,1724398232370,-6855.8753,0.00010888,2]
[335640412,1724398232380,-203.44,0.00010888,2]
[335640413,1724398232389,-1638.00019,0.0001089,2]
[335640414,1724398232399,-1000.0,0.0001089,2]
[335640415,1724398232409,-500.0,0.00010892,2]
[335640416,1724398232419,-281.1116,0.00010892,2]
[335640417,1724398232428,-171.86552433,0.00010895,2]
[335640418,1724398232438,-3247.8185,0.00010896,2]
[335640419,1724398232447,-201.15137705,0.00010897,2]
[335640420,1724398232457,-1199.01292724,0.00010897,2]
[335640421,1724398232467,-199.73100076,0.00010898,2]
[335640422,1724398232476,-1064.4785,0.00010898,2]
[335640423,1724398232486,-6224.39950182,0.00010898,2]
[335640424,1724398232495,-680.15246424,0.00010899,2]
[335640425,1724398232505,-1199.01292722,0.00010899,2]
[335640426,1724398232517,-150.27,0.000109,2]
[335640427,1724398232527,-680.15246424,0.000109,2]
[335640428,1724398232536,-351.38020717,0.000109,2]
[335640429,1724398232545,-351.38020715,0.000109,2]
[335640430,1724398232555,-351.38020715,0.000109,2]
[335640431,1724398232564,-1199.01292722,0.000109,2]
[335640432,1724398232574,-351.38020715,0.000109,2]
[335640433,1724398232583,-351.38020715,0.000109,2]
[335640434,1724398232593,-351.38020715,0.000109,2]
[335640435,1724398232602,-351.38020715,0.000109,2]
[335640436,1724398232612,-351.38020715,0.000109,2]
[335640438,1724398232621,-1000.0,0.00010945,2]
[335640440,1724398232631,-1000.0,0.00010945,2]
[335640442,1724398232640,-1000.0,0.00010945,2]
[335640443,1724398232649,-1000.0,0.00010945,2]
[335640445,1724398232658,-1000.0,0.00010945,2]
[335640447,1724398232668,-1000.0,0.00010945,2]
[335640449,1724398232678,-1000.0,0.00010945,2]
[335640451,1724398232688,-1000.0,0.00010945,2]
[335640453,1724398232698,-1000.0,0.00010945,2]
[335640455,1724398232708,-1000.0,0.00010945,2]
[335640457,1724398232717,-1000.0,0.00010945,2]
[335640459,1724398232727,-1000.0,0.00010945,2]
[335640462,1724398232736,-1000.0,0.00010945,2]
[335640463,1724398232745,-1000.0,0.00010945,2]
[335640465,1724398232755,-1000.0,0.00010945,2]
[335640467,1724398232766,-1000.0,0.00010945,2]
[335640469,1724398232775,-1000.0,0.00010945,2]
[335640471,1724398232784,-1000.0,0.00010945,2]
[335640473,1724398232794,-1000.0,0.00010945,2]
[335640475,1724398232803,-1000.0,0.00010945,2]
[335640477,1724398232812,-1000.0,0.00010945,2]
[335640479,1724398232822,-1000.0,0.00010945,2]
[335640481,1724398232831,-1000.0,0.00010945,2]
[335640483,1724398232840,-1000.0,0.00010945,2]
[335640485,1724398232850,-1000.0,0.00010945,2]
[335640487,1724398232859,-1000.0,0.00010945,2]
[335640489,1724398232870,-1000.0,0.00010945,2]
[335640491,1724398232882,-1000.0,0.00010945,2]
[335640494,1724398232895,-1000.0,0.00010945,2]
[335640496,1724398232905,-1000.0,0.00010945,2]
[335640498,1724398232916,-852.0045,0.00010945,2]
[335640500,1724398232927,-151.64,0.00010948,2]
[335640502,1724398232937,-931.8,0.00010958,2]
[335640504,1724398232947,-512.16918414,0.00010958,2]
[335640506,1724398232959,-500.0,0.00010958,2]
[335640508,1724398232968,-509.06919665,0.00010958,2]
[335640510,1724398232978,-508.33835607,0.00010958,2]
[335640512,1724398232987,-500.0,0.00010958,2]
[335640514,1724398232996,-510.52565973,0.00010958,2]
[335640516,1724398233006,-513.40078702,0.00010958,2]
[335640518,1724398233016,-500.0,0.00010958,2]
[335640520,1724398233026,-500.0,0.00010958,2]
[335640522,1724398233036,-498.57266442,0.00010958,2]
[335640524,1724398233045,-504.01790313,0.00010958,2]
[335640526,1724398233055,-500.0,0.00010958,2]
[335640528,1724398233064,-510.20537332,0.00010958,2]
[335640530,1724398233074,-500.0,0.00010958,2]
[335640532,1724398233083,-506.28325007,0.00010958,2]
[335640534,1724398233094,-500.0,0.00010958,2]
[335640536,1724398233103,-890.02,0.00010958,2]
[335640539,1724398233112,-2495.4771356,0.00010958,2]
[335640540,1724398233122,-512.46255915,0.00010958,2]
[335640542,1724398233131,-500.0,0.00010958,2]
[335640544,1724398233140,-805.58,0.00010958,2]
[335640546,1724398233152,-504.91730171,0.00010958,2]
[335640548,1724398233162,-503.93867081,0.00010958,2]
[335640550,1724398233171,-506.27135362,0.00010958,2]
[335640552,1724398233180,-500.0,0.00010958,2]
[335640554,1724398233190,-500.0,0.00010958,2]
[335640556,1724398233201,-500.0,0.00010958,2]
[335640558,1724398233210,-500.0,0.00010958,2]
[335640560,1724398233220,-500.0,0.00010958,2]
[335640562,1724398233232,-500.0,0.00010958,2]
[335640565,1724398233243,-896.72,0.00010958,2]
[335640567,1724398233252,-500.0,0.00010958,2]
[335640568,1724398233261,-498.5200659,0.00010958,2]
[335640571,1724398233271,-500.0,0.00010958,2]
[335640572,1724398233280,-500.0,0.00010958,2]
[335640574,1724398233290,-509.87853007,0.00010958,2]
[335640576,1724398233299,-515.42796044,0.00010958,2]
[335640579,1724398233309,-509.73437357,0.00010958,2]
[335640581,1724398233319,-500.0,0.00010958,2]
[335640583,1724398233328,-934.63,0.00010958,2]
[335640584,1724398233337,-500.0,0.00010958,2]
[335640586,1724398233347,-507.52686276,0.00010958,2]
[335640588,1724398233357,-1659.37,0.00010958,2]
[335640590,1724398233367,-500.0,0.00010958,2]
[335640592,1724398233377,-500.0,0.00010958,2]
[335640594,1724398233387,-505.19707163,0.00010958,2]
[335640596,1724398233396,-682.5,0.00010958,2]
[335640598,1724398233406,-507.4669423,0.00010958,2]
[335640600,1724398233415,-500.0,0.00010958,2]
[335640602,1724398233425,-500.0,0.00010958,2]
[335640634,1724398233723,-504.01268048,0.00010958,2]
[335640636,1724398233734,-500.0,0.00010958,2]
[335640638,1724398233744,-500.0,0.00010958,2]
[335640640,1724398233754,-614.55223126,0.00010958,2]
[335640642,1724398233764,-506.23815635,0.00010958,2]
[335640644,1724398233774,-509.8559609,0.00010958,2]
[335640646,1724398233783,-500.0,0.00010958,2]
[335640648,1724398233792,-500.0,0.00010958,2]
[335640650,1724398233801,-500.0,0.00010958,2]
[335640652,1724398233811,-500.0,0.00010958,2]
[335640654,1724398233820,-509.8924557,0.00010958,2]
[335640656,1724398233830,-500.0,0.00010958,2]
[335640657,1724398233840,-500.0,0.00010958,2]
[335640659,1724398233850,-500.0,0.00010958,2]
[335640661,1724398233860,-500.0,0.00010958,2]
[335640663,1724398233871,-504.43934347,0.00010958,2]
[335640665,1724398233881,-500.0,0.00010958,2]
[335640667,1724398233891,-1873.98,0.00010958,2]
[335640669,1724398233901,-500.0,0.00010958,2]
[335640671,1724398233910,-500.0,0.00010958,2]
[335640673,1724398233919,-553.91882009,0.00010958,2]
[335640675,1724398233929,-609.05771414,0.00010958,2]
[335640677,1724398233939,-500.0,0.00010958,2]
[335640679,1724398233949,-622.97286045,0.00010958,2]
[335640681,1724398233958,-500.0,0.00010958,2]
[335640683,1724398233968,-500.0,0.00010958,2]
[335640685,1724398233978,-582.93141323,0.00010958,2]
[335640687,1724398233987,-728.29,0.00010958,2]
[335640689,1724398233997,-500.0,0.00010958,2]
[335640691,1724398234006,-500.0,0.00010958,2]
[335640693,1724398234016,-411.71702796,0.00010958,2]
[335640695,1724398234026,-500.0,0.00010958,2]
[335640697,1724398234035,-500.0,0.00010958,2]
[335640699,1724398234044,-500.0,0.00010958,2]
[335640701,1724398234053,-500.0,0.00010958,2]
[335640703,1724398234063,-500.0,0.00010958,2]
[335640705,1724398234073,-500.0,0.00010958,2]
[335640707,1724398234083,-295.61523574,0.00010958,2]
[335640708,1724398234092,-500.0,0.00010958,2]
[335640711,1724398234101,-500.0,0.00010958,2]
[335640713,1724398234111,-510.68094907,0.00010958,2]
[335640714,1724398234120,-500.0,0.00010958,2]
[335640716,1724398234129,-500.0,0.00010958,2]
[335640718,1724398234139,-588.33771516,0.00010958,2]
[335640720,1724398234150,-500.0,0.00010958,2]